bitfinex/quotes_BTCUSD_20220211
["timestamp","ask_amount","ask_price","bid_price","bid_amount"]
[1644575168540,0.323719,43356.0,43354.0,0.00014559]
[1644575169135,0.057688,43357.0,43354.0,0.00014559]
[1644575169336,0.323719,43356.0,43354.0,0.00014559]
[1644575169536,0.057688,43357.0,43354.0,0.00014559]
[1644575169776,0.05,43355.0,43354.0,0.00014559]
[1644575170176,0.057688,43357.0,43354.0,0.00014559]
[1644575170177,0.107688,43357.0,43354.0,0.00014559]
[1644575170377,0.323719,43355.0,43354.0,0.00014559]
[1644575170577,0.05,43355.0,43354.0,0.00014559]
[1644575170777,0.323719,43355.0,43354.0,0.00014559]
[1644575171580,0.05838059,43357.0,43354.0,0.00014559]
[1644575172080,0.323719,43356.0,43354.0,0.00014559]
[1644575177674,0.34165031,43355.0,43354.0,0.01014559]
[1644575177875,0.66536931,43355.0,43354.0,0.01014559]
[1644575180078,0.057697,43347.0,43343.0,0.05769653]
[1644575180279,0.115394,43351.0,43344.0,0.13104085]
[1644575180280,0.31933947,43346.0,43344.0,0.13104085]
[1644575180479,0.31933947,43346.0,43345.0,0.01566]
[1644575180680,0.33334556,43351.0,43345.0,0.01566]
[1644575180883,0.33334556,43351.0,43344.0,0.015657]
[1644575181143,0.115394,43351.0,43344.0,0.015657]
[1644575181546,0.34218303,43348.0,43343.0,0.05769687]
[1644575181842,0.115394,43351.0,43343.0,0.05769687]
[1644575182141,0.115394,43351.0,43344.0,0.057698]
[1644575182142,0.057699,43347.0,43344.0,0.057698]
[1644575182944,0.34661129,43347.0,43344.0,0.057698]
[1644575183542,0.057699,43347.0,43344.0,0.057698]
[1644575184976,0.33971354,43347.0,43344.0,0.057698]
[1644575185578,0.057699,43347.0,43344.0,0.057698]
[1644575186581,0.057699,43347.0,43342.0,0.1]
[1644575186786,0.323719,43344.0,43342.0,0.1]
[1644575187183,0.373719,43344.0,43342.0,0.1]
[1644575187384,0.93273719,43343.0,43342.0,0.1]
[1644575187584,0.922396,43343.0,43342.0,0.1]
[1644575189229,1.20966015,43343.0,43342.0,0.1]
[1644575191431,1.20966015,43343.0,43342.0,0.11]
[1644575195882,1.20966015,43343.0,43342.0,0.11020817]
[1644575199234,1.20966015,43343.0,43342.0,0.10520817]
[1644575199978,0.86912444,43343.0,43342.0,0.10520817]
[1644575200180,0.057912,43345.0,43342.0,0.10520817]
[1644575200385,0.000201,43345.0,43344.0,0.026004]
[1644575200582,0.000201,43345.0,43344.0,0.37204962]
[1644575200782,0.29231481,43363.0,43344.0,0.52225779]
[1644575200783,0.19487654,43361.0,43344.0,0.52225779]
[1644575200981,0.19487654,43362.0,43356.0,0.38702371]
[1644575201181,0.95716332,43367.0,43356.0,0.38716933]
[1644575201182,0.19487654,43363.0,43356.0,0.38716933]
[1644575201379,0.05768,43362.0,43356.0,0.38716933]
[1644575201582,0.3053478,43360.0,43357.0,0.05767659]
[1644575201780,0.3053478,43360.0,43357.0,0.05782221]
[1644575202180,0.3053478,43360.0,43359.0,0.057674]
[1644575202384,0.3053478,43360.0,43359.0,0.05781962]
[1644575202582,0.3053478,43360.0,43359.0,0.08378962]
[1644575202781,0.3053478,43360.0,43359.0,0.05781962]
[1644575204032,0.00066376,43362.0,43359.0,0.115492]
[1644575204231,0.00066376,43362.0,43360.0,0.071871]
[1644575204430,0.19487654,43366.0,43361.0,0.057666]
[1644575204629,0.00066375,43363.0,43361.0,0.05781162]
[1644575204830,0.00066375,43363.0,43362.0,0.025964]
[1644575205032,0.00066375,43363.0,43362.0,0.11547862]
[1644575205434,0.00066375,43363.0,43362.0,0.23734462]
[1644575205634,0.00024851,43370.0,43362.0,0.5378233]
[1644575205932,0.00061824,43365.0,43364.0,0.075962]
[1644575206131,0.00061824,43365.0,43364.0,0.12200762]
[1644575206333,0.00061824,43365.0,43364.0,0.42689931]
[1644575206733,0.00061824,43365.0,43364.0,0.37689931]
[1644575206933,0.31701168,43375.0,43364.0,0.43455231]
[1644575206934,0.00024851,43371.0,43364.0,0.43455231]
[1644575207134,0.00061584,43367.0,43365.0,0.025957]
[1644575207401,0.00061584,43367.0,43366.0,0.0459]
[1644575207704,0.00061584,43367.0,43366.0,0.04604562]
[1644575208100,0.28739901,43368.0,43366.0,0.04604562]
[1644575208302,0.28739901,43368.0,43367.0,0.057665]
[1644575208505,0.28739901,43368.0,43353.0,0.5741]
[1644575208506,0.54135747,43358.0,43353.0,0.5741]
[1644575208709,0.64049578,43357.0,43350.0,0.115343]
[1644575208906,0.64049578,43357.0,43346.0,0.00020817]
[1644575208907,0.323723,43356.0,43346.0,0.00020817]
[1644575209203,0.323723,43355.0,43345.0,0.00020817]
[1644575209405,0.84049578,43357.0,43342.0,0.09520817]
[1644575209605,0.35509986,43353.0,43342.0,0.09520817]
[1644575210107,0.00061588,43356.0,43342.0,0.09520817]
[1644575210108,0.00061588,43356.0,43342.0,0.21058417]
[1644575210505,0.4,43357.0,43342.0,0.21058417]
[1644575210706,0.00061935,43352.0,43342.0,0.21058417]
[1644575210907,0.00061935,43352.0,43351.0,0.34648801]
[1644575211132,0.00061935,43352.0,43348.0,0.02599]
[1644575211731,0.1,43357.0,43348.0,0.02599]
[1644575211933,0.00061938,43352.0,43348.0,0.02599]
[1644575212835,0.1,43357.0,43348.0,0.02599]
[1644575213032,0.00061938,43352.0,43348.0,0.02599]
[1644575213235,0.00061938,43352.0,43350.0,0.11536188]
[1644575213433,0.00061938,43352.0,43351.0,0.025988]
[1644575213934,0.1,43357.0,43351.0,0.025988]
[1644575214336,0.1,43357.0,43352.0,0.11534794]
[1644575214337,0.00061908,43354.0,43352.0,0.11534794]
[1644575214534,0.00061908,43354.0,43353.0,0.14133]
[1644575215182,0.1,43357.0,43353.0,0.14133]
[1644575215386,0.1,43357.0,43353.0,0.115346]
[1644575215582,0.00061908,43356.0,43353.0,0.115346]
[1644575216089,0.26679994,43361.0,43353.0,0.115346]
[1644575216090,0.19525386,43367.0,43358.0,0.2]
[1644575216289,0.057676,43376.0,43358.0,0.2]
[1644575216290,0.00024851,43368.0,43363.0,0.025962]
[1644575216487,0.34103395,43382.0,43363.0,0.025962]
[1644575216488,0.00024851,43371.0,43367.0,0.05]
[1644575216684,0.25375669,43379.0,43367.0,0.05]
[1644575216685,0.00024851,43374.0,43368.0,0.071853]
[1644575216883,0.00024851,43375.0,43368.0,0.071853]
[1644575217084,0.00024851,43378.0,43369.0,0.025947]
[1644575217287,0.27757378,43379.0,43370.0,0.0459]
[1644575217486,0.00024851,43378.0,43370.0,0.10355301]
[1644575217686,0.27757378,43379.0,43370.0,0.10355301]
[1644575217687,0.27782229,43379.0,43370.0,0.10355301]
[1644575217888,0.0006195,43377.0,43370.0,0.10355301]
[1644575218288,0.00086801,43377.0,43370.0,0.10355301]
[1644575218543,0.0006195,43377.0,43370.0,0.10355301]
[1644575218733,0.0006195,43377.0,43371.0,0.025945]
[1644575218934,0.00024851,43378.0,43371.0,0.025945]
[1644575219134,0.0006195,43376.0,43373.0,0.05765]
[1644575219335,0.0006195,43376.0,43374.0,0.025942]
[1644575220035,0.00024851,43378.0,43373.0,0.05765]
[1644575220234,0.32757378,43379.0,43373.0,0.05765]
[1644575220235,0.32782229,43379.0,43373.0,0.05765]
[1644575220439,0.00061949,43377.0,43373.0,0.05765]
[1644575220935,0.000868,43377.0,43373.0,0.05765]
[1644575221135,0.00061949,43377.0,43373.0,0.05765]
[1644575221337,0.00024851,43378.0,43373.0,0.05765]
[1644575221535,0.00061893,43377.0,43373.0,0.05765]
[1644575222484,0.00024851,43378.0,43373.0,0.05765]
[1644575222683,0.00061893,43377.0,43373.0,0.05765]
[1644575223583,0.00024851,43378.0,43373.0,0.05765]
[1644575223787,0.27782229,43379.0,43373.0,0.05765]
[1644575223985,0.00061893,43377.0,43373.0,0.05765]
[1644575224785,0.00024851,43378.0,43373.0,0.05765]
[1644575224985,0.27782229,43379.0,43373.0,0.05765]
[1644575225185,0.00061898,43377.0,43373.0,0.05765]
[1644575225586,0.00086749,43377.0,43373.0,0.05765]
[1644575225789,0.00061898,43377.0,43373.0,0.05765]
[1644575226041,0.31576324,43377.0,43373.0,0.05765]
[1644575226236,0.00061898,43377.0,43373.0,0.05765]
[1644575226435,0.00050127,43377.0,43373.0,0.05765]
[1644575226736,0.32422427,43377.0,43368.0,0.115315]
[1644575226934,0.00050127,43377.0,43368.0,0.115315]
[1644575227335,0.00024851,43378.0,43368.0,0.115315]
[1644575227535,0.27782229,43379.0,43368.0,0.115315]
[1644575228036,0.27782229,43379.0,43368.0,0.17297148]
[1644575228236,0.27782229,43379.0,43371.0,0.057659]
[1644575228636,0.00061904,43376.0,43371.0,0.057659]
[1644575229536,0.00086755,43376.0,43371.0,0.057659]
[1644575229783,0.00024851,43376.0,43371.0,0.057659]
[1644575229984,0.00061904,43376.0,43371.0,0.057659]
[1644575230185,0.323723,43375.0,43371.0,0.057659]
[1644575230387,0.00024851,43375.0,43371.0,0.057659]
[1644575230685,0.323723,43375.0,43371.0,0.057659]
[1644575230885,0.00024851,43375.0,43371.0,0.057659]
[1644575231088,0.323723,43375.0,43371.0,0.057659]
[1644575231286,0.32386974,43375.0,43371.0,0.057659]
[1644575231485,0.00014674,43375.0,43371.0,0.057659]
[1644575231685,0.31070917,43372.0,43367.0,0.115318]
[1644575232385,0.31070917,43372.0,43368.0,0.025952]
[1644575232586,0.31070917,43372.0,43367.0,0.115318]
[1644575232785,0.31070917,43372.0,43368.0,0.025952]
[1644575232986,0.31070917,43372.0,43369.0,0.025951]
[1644575233187,0.31070917,43372.0,43367.0,0.115318]
[1644575233385,0.31070917,43372.0,43368.0,0.025951]
[1644575233633,0.31070917,43372.0,43368.0,0.025952]
[1644575234033,0.31070917,43372.0,43367.0,0.115318]
[1644575234630,0.31070917,43372.0,43368.0,0.025952]
[1644575234831,0.31070917,43372.0,43367.0,0.115318]
[1644575235031,0.31070917,43372.0,43368.0,0.025952]
[1644575235532,0.31070917,43372.0,43367.0,0.115318]
[1644575235933,0.31070917,43372.0,43368.0,0.025952]
[1644575236533,0.31070917,43372.0,43367.0,0.115318]
[1644575236735,0.31070917,43372.0,43369.0,0.057665]
[1644575236736,0.31085591,43372.0,43369.0,0.057665]
[1644575236935,0.31085591,43372.0,43366.0,0.115325]
[1644575236936,0.323723,43371.0,43355.0,0.29286504]
[1644575237140,0.323723,43371.0,43360.0,0.18384871]
[1644575237141,0.27172132,43365.0,43360.0,0.18384871]
[1644575237387,0.32939932,43365.0,43361.0,0.025961]
[1644575237888,0.29043618,43363.0,43353.0,0.1936292]
[1644575238090,0.115372,43362.0,43353.0,0.009225]
[1644575238289,0.373723,43361.0,43353.0,0.00978049]
[1644575238487,0.323723,43360.0,43353.0,0.00978049]
[1644575238887,0.05,43361.0,43355.0,0.057684]
[1644575239286,0.3,43362.0,43355.0,0.057684]
[1644575239287,0.323723,43360.0,43355.0,0.057684]
[1644575239487,0.35,43362.0,43355.0,0.057684]
[1644575239689,0.05,43360.0,43355.0,0.057684]
[1644575239889,0.35,43362.0,43355.0,0.057684]
[1644575240088,0.323723,43361.0,43355.0,0.057684]
[1644575240393,0.1246,43368.0,43355.0,0.057684]
[1644575240594,0.00014674,43371.0,43355.0,0.057684]
[1644575240595,0.47217569,43371.0,43355.0,0.057684]
[1644575240791,0.2770236,43371.0,43355.0,0.057684]
[1644575241040,0.27717034,43371.0,43355.0,0.057684]
[1644575241435,0.34859935,43371.0,43365.0,0.05766378]
[1644575241635,0.34859935,43371.0,43359.0,0.0459]
[1644575242838,0.34874609,43371.0,43361.0,0.057665]
[1644575243237,0.34874609,43371.0,43364.0,0.057665]
[1644575244238,0.057669,43370.0,43364.0,0.057665]
[1644575246489,0.26111619,43369.0,43364.0,0.057665]
[1644575246988,0.323723,43368.0,43358.0,0.115348]
[1644575247188,0.28863648,43364.0,43353.0,0.00055549]
[1644575247387,0.28296232,43363.0,43354.0,0.025968]
[1644575247584,0.28296232,43363.0,43353.0,0.00055549]
[1644575247786,0.28296232,43363.0,43348.0,0.04610817]
[1644575247984,0.28296232,43363.0,43353.0,0.00055549]
[1644575247985,0.26134843,43358.0,43353.0,0.00055549]
[1644575248385,0.31903343,43358.0,43353.0,0.00055549]
[1644575248639,0.31903343,43358.0,43354.0,0.115358]
[1644575249039,0.29738232,43357.0,43354.0,0.115358]
[1644575249236,0.31903343,43358.0,43354.0,0.115358]
[1644575249637,0.26134843,43358.0,43354.0,0.115358]
[1644575251038,0.75296459,43358.0,43354.0,0.115358]
[1644575251243,0.323723,43357.0,43349.0,0.057691]
[1644575251442,0.323723,43357.0,43353.0,0.0005555]
[1644575252039,0.057692,43355.0,43353.0,0.0005555]
[1644575252284,0.323723,43354.0,43353.0,0.0005555]
[1644575252483,0.05,43355.0,43348.0,0.00020817]
[1644575252683,0.323723,43354.0,43352.0,0.00055551]
[1644575253086,0.06902636,43356.0,43352.0,0.00055551]
[1644575253284,0.34557543,43355.0,43352.0,0.00055551]
[1644575253487,0.28788543,43355.0,43352.0,0.00055551]
[1644575253684,0.28788543,43355.0,43352.0,0.057689]
[1644575255689,0.323723,43354.0,43352.0,0.057689]
[1644575255888,0.08404355,43357.0,43352.0,0.057689]
[1644575256139,0.323723,43356.0,43352.0,0.057689]
[1644575257341,0.05769,43355.0,43352.0,0.057689]
[1644575257643,0.323723,43354.0,43352.0,0.00055556]
[1644575257840,0.2792616,43353.0,43352.0,0.00055556]
[1644575258039,0.6029846,43353.0,43352.0,0.00055556]
[1644575258439,0.6029846,43353.0,43350.0,0.057693]
[1644575258642,0.3369556,43353.0,43350.0,0.05824858]
[1644575258941,0.5981687,43352.0,43350.0,0.05824858]
[1644575259140,0.26358392,43351.0,43350.0,0.05824858]
[1644575259340,0.33546644,43352.0,43350.0,0.05824858]
[1644575259545,0.69145657,43352.0,43350.0,0.00055558]
[1644575259788,0.69145657,43352.0,43346.0,0.00020817]
[1644575259989,0.69145657,43352.0,43349.0,0.0005556]
[1644575260589,0.69145657,43352.0,43350.0,0.057694]
[1644575260788,0.33546644,43352.0,43350.0,0.057694]
[1644575262791,0.13404355,43357.0,43350.0,0.057694]
[1644575262991,0.26174618,43356.0,43350.0,0.057694]
[1644575263190,0.05,43357.0,43350.0,0.057694]
[1644575263390,0.5997211,43358.0,43351.0,0.00055556]
[1644575263634,0.5497211,43358.0,43353.0,0.057686]
[1644575263834,0.26538509,43356.0,43353.0,0.057686]
[1644575264842,0.19500535,43364.0,43353.0,0.057686]
[1644575265035,0.1126,43365.0,43353.0,0.057686]
[1644575265433,0.1126,43365.0,43353.0,0.115365]
[1644575265634,0.1126,43365.0,43353.0,0.115351]
[1644575265837,0.34148754,43361.0,43357.0,0.057673]
[1644575266033,0.27127228,43366.0,43357.0,0.057673]
[1644575266236,0.26396408,43367.0,43357.0,0.057673]
[1644575266438,0.5627,43368.0,43357.0,0.057673]
[1644575266439,0.5627,43368.0,43357.0,0.35220233]
[1644575266735,0.8260828,43368.0,43357.0,0.0459]
[1644575267386,0.323723,43367.0,43360.0,0.057676]
[1644575267782,0.323723,43365.0,43356.0,0.05768114]
[1644575267985,0.323723,43365.0,43353.0,0.11591368]
[1644575267986,0.31371065,43364.0,43353.0,0.11591368]
[1644575268181,0.31371065,43364.0,43353.0,0.11535814]
[1644575268384,0.37227189,43363.0,43358.0,0.057683]
[1644575268584,0.58662108,43362.0,43358.0,0.057683]
[1644575268784,0.32057908,43362.0,43358.0,0.057683]
[1644575268984,0.26289808,43362.0,43358.0,0.057683]
[1644575269184,0.25976635,43361.0,43358.0,0.057683]
[1644575269788,0.323723,43360.0,43356.0,0.057686]
[1644575269992,0.34710906,43359.0,43353.0,0.00055555]
[1644575270187,0.323723,43358.0,43353.0,0.00055555]
[1644575270587,0.323723,43358.0,43347.0,0.00020465]
[1644575270888,0.323723,43358.0,43353.0,0.05824555]
[1644575271133,0.323723,43357.0,43353.0,0.05824555]
[1644575271335,0.323723,43355.0,43353.0,0.05824555]
[1644575271532,0.3329482,43354.0,43353.0,0.05824555]
[1644575271731,0.34724909,43348.0,43347.0,0.02619165]
[1644575271932,0.34724909,43348.0,43347.0,0.025987]
[1644575273135,0.34724909,43348.0,43347.0,0.083676]
[1644575277791,0.34724909,43348.0,43347.0,0.057689]
[1644575278186,0.34724909,43348.0,43347.0,0.05663301]
[1644575279041,0.34724909,43348.0,43347.0,0.08262801]
[1644575279639,0.34724909,43348.0,43347.0,0.17852801]
[1644575280241,0.34724909,43348.0,43347.0,0.22852801]
[1644575281039,0.34724909,43348.0,43347.0,0.36240204]
[1644575281540,0.34724909,43348.0,43347.0,0.51240204]
[1644575282584,0.09662192,43348.0,43347.0,0.77616335]
[1644575282787,0.00069289,43359.0,43348.0,0.45]
[1644575282990,0.00069289,43359.0,43354.0,0.05767]
[1644575283185,0.00069289,43359.0,43355.0,0.071878]
[1644575283785,0.61936808,43365.0,43355.0,0.071878]
[1644575283987,0.000693,43359.0,43355.0,0.0459]
[1644575284185,0.000693,43359.0,43356.0,0.083644]
[1644575284384,0.000693,43359.0,43357.0,0.0459]
[1644575284588,0.000693,43359.0,43358.0,0.025974]
[1644575284987,0.2638577,43364.0,43357.0,0.103576]
[1644575285186,0.000693,43361.0,43357.0,0.103576]
[1644575285387,0.000693,43361.0,43358.0,0.08364421]
[1644575285592,0.000693,43361.0,43359.0,0.083646]
[1644575285790,0.000693,43361.0,43359.0,0.057675]
[1644575286056,0.000693,43361.0,43359.0,0.11535]
[1644575286251,0.5592,43367.0,43361.0,0.05767572]
[1644575286451,0.00069299,43362.0,43361.0,0.05767572]
[1644575286651,0.00069299,43362.0,43361.0,0.11535172]
[1644575287452,0.3471183,43367.0,43361.0,0.05767572]
[1644575287652,0.00069298,43364.0,43363.0,0.057677]
[1644575287851,0.00069298,43364.0,43363.0,0.11535175]
[1644575288455,0.00069298,43364.0,43363.0,0.18721775]
[1644575288657,0.00024859,43369.0,43364.0,0.057663]
[1644575288855,0.00069297,43366.0,43365.0,0.071859]
[1644575289052,0.00069297,43366.0,43365.0,0.0459]
[1644575289453,0.00069297,43366.0,43365.0,0.103561]
[1644575289885,0.00024859,43368.0,43365.0,0.103561]
[1644575290085,0.00069297,43368.0,43365.0,0.0459]
[1644575290289,0.00069297,43368.0,43365.0,0.161229]
[1644575290891,0.25066048,43369.0,43365.0,0.161229]
[1644575291189,0.25135344,43369.0,43365.0,0.161229]
[1644575292289,0.25066048,43369.0,43365.0,0.161229]
[1644575292488,0.25135344,43369.0,43365.0,0.161229]
[1644575293291,0.25066048,43369.0,43365.0,0.161229]
[1644575293737,0.25135344,43369.0,43365.0,0.115329]
[1644575293936,0.323723,43368.0,43365.0,0.115329]
[1644575294336,0.25135344,43369.0,43365.0,0.115329]
[1644575294537,0.25090907,43369.0,43365.0,0.115329]
[1644575294737,0.323723,43368.0,43365.0,0.115329]
[1644575294937,0.323723,43367.0,43365.0,0.115329]
[1644575295138,0.25160203,43369.0,43363.0,0.057675]
[1644575295139,0.32397159,43368.0,43363.0,0.057675]
[1644575295340,0.28543927,43361.0,43358.0,0.115353]
[1644575295538,0.28543927,43361.0,43359.0,0.025967]
[1644575296143,0.28543927,43361.0,43359.0,0.025971]
[1644575296540,0.28543927,43361.0,43360.0,0.057678]
[1644575296741,0.28543927,43361.0,43358.0,0.115353]
[1644575296940,0.28543927,43361.0,43355.0,0.115362]
[1644575297142,0.08657608,43360.0,43356.0,0.025973]
[1644575297987,0.08657608,43360.0,43357.0,0.11536115]
[1644575298189,0.08657608,43360.0,43358.0,0.025973]
[1644575298388,0.08726908,43360.0,43358.0,0.025973]
[1644575298989,0.08726908,43360.0,43355.0,0.115362]
[1644575299190,0.000693,43360.0,43359.0,0.057679]
[1644575299391,0.28543927,43361.0,43356.0,0.025974]
[1644575299590,0.000693,43360.0,43356.0,0.025974]
[1644575299790,0.000693,43360.0,43356.0,0.071874]
[1644575300190,0.000693,43360.0,43356.0,0.025974]
[1644575300593,0.28543927,43361.0,43357.0,0.057683]
[1644575301042,0.000693,43360.0,43358.0,0.025973]
[1644575301239,0.000693,43360.0,43357.0,0.057683]
[1644575301637,0.000693,43360.0,43352.0,0.057682]
[1644575301838,0.28543927,43361.0,43353.0,0.025977]
[1644575302037,0.28613227,43361.0,43353.0,0.057681]
[1644575302436,0.28613227,43361.0,43357.0,0.057683]
[1644575302437,0.000693,43361.0,43357.0,0.057683]
[1644575302639,0.000693,43361.0,43358.0,0.020976]
[1644575303038,0.00024859,43367.0,43357.0,0.115328]
[1644575303238,0.00069299,43362.0,43357.0,0.161228]
[1644575303439,0.00069299,43362.0,43360.0,0.020971]
[1644575303637,0.00069299,43362.0,43361.0,0.05767]
[1644575304238,0.34680165,43365.0,43361.0,0.11534054]
[1644575304437,0.00069298,43364.0,43361.0,0.11534054]
[1644575305086,0.00069298,43364.0,43362.0,0.078639]
[1644575305486,0.00024859,43368.0,43362.0,0.05767]
[1644575305688,0.00069298,43365.0,43362.0,0.05767]
[1644575306088,0.00069298,43365.0,43362.0,0.11534236]
[1644575306691,0.3433961,43366.0,43363.0,0.057672]
[1644575306888,0.34408907,43366.0,43363.0,0.057672]
[1644575307288,0.34408907,43366.0,43363.0,0.11534374]
[1644575307489,0.00069297,43366.0,43363.0,0.11534374]
[1644575307889,0.00024859,43368.0,43364.0,0.057672]
[1644575308089,0.25267935,43369.0,43364.0,0.057672]
[1644575308090,0.00069297,43367.0,43364.0,0.057672]
[1644575308546,0.29868087,43365.0,43364.0,0.057672]
[1644575310741,0.00094156,43367.0,43364.0,0.057672]
[1644575310941,0.00069297,43367.0,43364.0,0.057672]
[1644575311342,0.19500535,43368.0,43364.0,0.057672]
[1644575311541,0.19594691,43368.0,43364.0,0.057672]
[1644575311742,0.26555723,43365.0,43364.0,0.057672]
[1644575313191,0.26555723,43365.0,43362.0,0.057678]
[1644575314692,0.26555723,43365.0,43362.0,0.05777877]
[1644575317944,0.26555723,43365.0,43362.0,0.11545302]
[1644575318544,0.19500535,43368.0,43362.0,0.11545302]
[1644575318744,0.19500535,43367.0,43363.0,0.057672]
[1644575318944,0.00069297,43366.0,43363.0,0.11544386]
[1644575319145,0.00069297,43366.0,43363.0,0.05777186]
[1644575319795,0.29650441,43365.0,43363.0,0.05777186]
[1644575320292,0.29650441,43365.0,43364.0,0.057672]
[1644575320492,0.29650441,43365.0,43364.0,0.05777277]
[1644575320892,0.00069297,43367.0,43364.0,0.05777277]
[1644575321093,0.19500535,43368.0,43364.0,0.05777277]
[1644575321294,0.00069297,43367.0,43364.0,0.05777277]
[1644575321896,0.29377646,43365.0,43364.0,0.05777277]
[1644575322696,0.19500535,43367.0,43364.0,0.05777277]
[1644575323295,0.19500535,43366.0,43364.0,0.05777277]
[1644575323736,0.30861859,43365.0,43364.0,0.05777277]
[1644575324338,0.50362394,43365.0,43364.0,0.05777277]
[1644575324837,0.19500535,43365.0,43364.0,0.07873577]
[1644575325439,0.19500535,43365.0,43364.0,0.05777277]
[1644575325939,0.48211101,43365.0,43364.0,0.05777277]
[1644575327590,0.48211101,43365.0,43364.0,0.00010077]
[1644575327791,0.61082366,43365.0,43364.0,0.00010077]
[1644575327991,0.61082366,43365.0,43353.0,0.48386666]
[1644575327992,0.95,43364.0,43353.0,0.48386666]
[1644575328190,0.07472215,43357.0,43356.0,0.00010077]
[1644575328388,0.39844015,43357.0,43356.0,0.00010077]
[1644575328589,0.69443795,43357.0,43356.0,0.00010077]
[1644575328987,0.6197158,43357.0,43356.0,0.00010077]
[1644575329186,0.19521897,43359.0,43356.0,0.00010077]
[1644575329386,0.323718,43358.0,43356.0,0.00010077]
[1644575329589,0.19521897,43360.0,43356.0,0.05778577]
[1644575329590,0.0004958,43359.0,43356.0,0.05778577]
[1644575329788,0.34892989,43358.0,43356.0,0.05778577]
[1644575331737,0.34892989,43358.0,43349.0,0.24616539]
[1644575331738,0.35,43357.0,43349.0,0.24616539]
[1644575331938,0.34892989,43358.0,43349.0,0.26714839]
[1644575332138,0.34892989,43358.0,43351.0,0.00053853]
[1644575332337,0.34892989,43358.0,43356.0,0.057685]
[1644575332741,0.34879643,43358.0,43356.0,0.057685]
[1644575335190,0.323718,43357.0,43356.0,0.057685]
[1644575336190,0.323718,43357.0,43354.0,0.057688]
[1644575336389,0.34879643,43358.0,43354.0,0.057688]
[1644575336989,0.34948915,43358.0,43354.0,0.057688]
[1644575337791,0.34879643,43358.0,43354.0,0.057688]
[1644575338192,0.34948914,43358.0,43354.0,0.057688]
[1644575338839,0.32322435,43358.0,43354.0,0.057688]
[1644575339042,0.32253164,43358.0,43354.0,0.057688]
[1644575339240,0.32322435,43358.0,43354.0,0.057688]
[1644575340042,0.58512,43357.0,43354.0,0.057688]
[1644575340343,0.261402,43357.0,43354.0,0.057688]
[1644575340742,0.32322435,43358.0,43354.0,0.057688]
[1644575341542,0.32253164,43358.0,43354.0,0.057688]
[1644575341743,0.32322435,43358.0,43354.0,0.035188]
[1644575341943,0.32322435,43358.0,43354.0,0.01445317]
[1644575342688,0.32253164,43358.0,43354.0,0.01445317]
[1644575342889,0.32322435,43358.0,43354.0,0.01445317]
[1644575343888,0.32253164,43358.0,43354.0,0.01445317]
[1644575344093,0.32322435,43358.0,43354.0,0.01445317]
[1644575344891,0.32322435,43358.0,43354.0,0.07213617]
[1644575345092,0.31071897,43362.0,43355.0,0.057683]
[1644575345093,0.1155,43362.0,43355.0,0.057683]
[1644575345295,0.00069271,43358.0,43355.0,0.057683]
[1644575345491,0.00069271,43358.0,43356.0,0.02098]
[1644575346140,0.00069271,43358.0,43354.0,0.3122745]
[1644575346341,0.31382721,43360.0,43357.0,0.115351]
[1644575346540,0.31382721,43360.0,43357.0,0.161251]
[1644575346541,0.00069271,43359.0,43357.0,0.161251]
[1644575347338,0.00069271,43359.0,43357.0,0.146251]
[1644575347539,0.31382721,43360.0,43357.0,0.146251]
[1644575347740,0.31451992,43360.0,43357.0,0.146251]
[1644575347941,0.31451992,43360.0,43358.0,0.057679]
[1644575348142,0.31451992,43360.0,43358.0,0.115358]
[1644575348343,0.31451992,43360.0,43358.0,0.057679]
[1644575348740,0.31382721,43360.0,43358.0,0.057679]
[1644575351200,0.31382721,43360.0,43358.0,0.057683]
[1644575351996,0.2602424,43359.0,43358.0,0.057683]
[1644575352197,0.31382721,43360.0,43353.0,0.115368]
[1644575352399,0.31382721,43360.0,43352.0,0.1969095]
[1644575352797,0.31382721,43360.0,43351.0,0.21894913]
[1644575352998,0.31382721,43360.0,43352.0,0.19687506]
[1644575353397,0.31382721,43360.0,43353.0,0.020981]
[1644575353644,0.00069271,43358.0,43352.0,0.19687506]
[1644575353840,0.00069271,43358.0,43353.0,0.020981]
[1644575354240,0.00069271,43358.0,43354.0,0.057689]
[1644575354442,0.00069271,43358.0,43355.0,0.02098]
[1644575354641,0.31382721,43360.0,43352.0,0.36993506]
[1644575354840,0.00069271,43358.0,43352.0,0.36993506]
[1644575355040,0.00069271,43358.0,43353.0,0.020982]
[1644575355242,0.00069271,43358.0,43352.0,0.19687506]
[1644575355442,0.00069271,43358.0,43356.0,0.057687]
[1644575355643,0.00069271,43358.0,43356.0,0.115367]
[1644575355842,0.31382721,43360.0,43356.0,0.05768]
[1644575356042,0.00069271,43359.0,43356.0,0.05768]
[1644575356843,0.00069271,43359.0,43357.0,0.057681]
[1644575357044,0.31382721,43360.0,43357.0,0.057681]
[1644575357286,0.31451992,43360.0,43357.0,0.115362]
[1644575358189,0.31382721,43360.0,43357.0,0.115362]
[1644575358387,0.31382721,43360.0,43357.0,0.1057625]
[1644575358588,0.31382721,43360.0,43357.0,0.057681]
[1644575361839,0.31382721,43360.0,43352.0,0.36992928]
[1644575362639,0.31382721,43360.0,43357.0,0.057681]
[1644575363442,0.0006927,43361.0,43357.0,0.057681]
[1644575363641,0.0006927,43361.0,43358.0,0.057673]
[1644575363840,0.0006927,43361.0,43359.0,0.020977]
[1644575364046,0.0006927,43361.0,43359.0,0.066877]
[1644575364241,0.19488345,43369.0,43360.0,0.27276847]
[1644575364443,0.19488345,43369.0,43361.0,0.020966]
[1644575364641,0.0006927,43362.0,43361.0,0.07863]
[1644575364893,0.0006927,43362.0,43361.0,0.124533]
[1644575365392,0.00024859,43369.0,43361.0,0.124533]
[1644575365594,0.19513204,43370.0,43361.0,0.124533]
[1644575365792,0.00069269,43364.0,43361.0,0.124533]
[1644575365992,0.00069269,43364.0,43363.0,0.05766814]
[1644575366193,0.00069269,43364.0,43363.0,0.13630014]
[1644575366594,0.00024859,43370.0,43363.0,0.13630014]
[1644575366792,0.51405326,43371.0,43365.0,0.057668]
[1644575366993,0.00069268,43366.0,43365.0,0.057668]
[1644575367192,0.00069268,43366.0,43365.0,0.078629]
[1644575367394,0.00069268,43366.0,43365.0,0.193964]
[1644575367593,0.00069268,43366.0,43365.0,0.136296]
[1644575367794,0.00024859,43370.0,43365.0,0.136296]
[1644575367994,0.3194184,43371.0,43365.0,0.115335]